Workbook

Sheet DB_BlackWhite
A1: Id(int) | C1: BlackOdds(arrint) | D1: WhiteOdds(arrint)
A2: 游戏id | B2: 游戏名称 | C2: 黑名单概率数组(1-10级千分比) | D2: 白名单概率数组
A3: 240 | B3: Tienlen经典 | C3: =_xlfn.CONCAT(AD3:AX3) -> -100|-190|-280|-370|-460|-550|-640|-730|-820|-910 | D3: =_xlfn.CONCAT(H3:AB3) -> 100|190|280|370|460|550|640|730|820|910 | G3: 90 | H3: 100 | I3: | | J3: =H3+$G$3 -> 190 | K3: | | L3: 280 | M3: | | N3: 370 | O3: | | P3: =N3+$G$3 -> 460 | Q3: | | R3: 550 | S3: | | T3: 640 | U3: | | V3: =T3+$G$3 -> 730 | W3: | | X3: 820 | Y3: | | Z3: 910 | AD3: -100 | AE3: | | AF3: =AD3-$G$3 -> -190 | AG3: | | AH3: -280 | AI3: | | AJ3: -370 | AK3: | | AL3: =AJ3-$G$3 -> -460 | AM3: | | AN3: -550 | AO3: | | AP3: -640 | AQ3: | | AR3: =AP3-$G$3 -> -730 | AS3: | | AT3: -820 | AU3: | | AV3: -910
A4: 241 | B4: Tienlen娱乐 | C4: -100|-190|-280|-370|-460|-550|-640|-730|-820|-910 | D4: 100|190|280|370|460|550|640|730|820|910 | H4: 100 | I4: | | J4: =H4+$G$3 -> 190 | K4: | | L4: 280 | M4: | | N4: 370 | O4: | | P4: =N4+$G$3 -> 460 | Q4: | | R4: 550 | S4: | | T4: 640 | U4: | | V4: =T4+$G$3 -> 730 | W4: | | X4: 820 | Y4: | | Z4: 910 | AD4: -100 | AE4: | | AF4: =AD4-$G$3 -> -190 | AG4: | | AH4: -280 | AI4: | | AJ4: -370 | AK4: | | AL4: =AJ4-$G$3 -> -460 | AM4: | | AN4: -550 | AO4: | | AP4: -640 | AQ4: | | AR4: =AP4-$G$3 -> -730 | AS4: | | AT4: -820 | AU4: | | AV4: -910
A5: 211 | B5: 十三张四人 | C5: -200|-280|-360|-440|-520|-600|-680|-760|-840|-920 | D5: 200|280|360|440|520|600|680|760|840|920 | G5: 80 | H5: 200 | I5: | | J5: =H5+$G$5 -> 280 | K5: | | L5: 360 | M5: | | N5: 440 | O5: | | P5: =N5+$G$5 -> 520 | Q5: | | R5: 600 | S5: | | T5: 680 | U5: | | V5: =T5+$G$5 -> 760 | W5: | | X5: 840 | Y5: | | Z5: 920 | AD5: -200 | AE5: | | AF5: =AD5-$G$5 -> -280 | AG5: | | AH5: -360 | AI5: | | AJ5: -440 | AK5: | | AL5: =AJ5-$G$5 -> -520 | AM5: | | AN5: =AL5-$G$5 -> -600 | AO5: | | AP5: =AN5-$G$5 -> -680 | AQ5: | | AR5: -760 | AS5: | | AT5: -840 | AU5: | | AV5: =AT5-$G$5 -> -920
A6: 212 | B6: 十三张八人 | C6: -100|-190|-280|-370|-460|-550|-640|-730|-820|-910 | D6: 100|190|280|370|460|550|640|730|820|910 | G6: 90 | H6: 100 | I6: | | J6: =H6+$G$6 -> 190 | K6: | | L6: 280 | M6: | | N6: 370 | O6: | | P6: =N6+$G$6 -> 460 | Q6: | | R6: 550 | S6: | | T6: 640 | U6: | | V6: =T6+$G$6 -> 730 | W6: | | X6: 820 | Y6: | | Z6: 910 | AD6: -100 | AE6: | | AF6: =AD6-$G$6 -> -190 | AG6: | | AH6: -280 | AI6: | | AJ6: -370 | AK6: | | AL6: =AJ6-$G$6 -> -460 | AM6: | | AN6: =AL6-$G$6 -> -550 | AO6: | | AP6: =AN6-$G$6 -> -640 | AQ6: | | AR6: -730 | AS6: | | AT6: -820 | AU6: | | AV6: =AT6-$G$6 -> -910
A7: 207 | B7: Tienlen自由桌经典 | C7: -100|-190|-280|-370|-460|-550|-640|-730|-820|-910 | D7: 100|190|280|370|460|550|640|730|820|910
A8: 208 | B8: Tienlen自由桌娱乐 | C8: -100|-190|-280|-370|-460|-550|-640|-730|-820|-910 | D8: 100|190|280|370|460|550|640|730|820|910 | H8: =H3*10 -> 1000 | I8: =I3 -> | | J8: 1900 | K8: | | L8: 2800 | M8: | | N8: =N3*10 -> 3700 | O8: =O3 -> | | P8: 4600 | Q8: | | R8: 5500 | S8: | | T8: =T3*10 -> 6400 | U8: =U3 -> | | V8: 7300 | W8: | | X8: 8200 | Y8: | | Z8: =Z3*10 -> 9100 | AD8: -1000 | AE8: =AE3 -> | | AF8: =AF3*10 -> -1900 | AG8: | | AH8: -2800 | AI8: | | AJ8: -3700 | AK8: =AK3 -> | | AL8: =AL3*10 -> -4600 | AM8: | | AN8: -5500 | AO8: | | AP8: -6400 | AQ8: =AQ3 -> | | AR8: =AR3*10 -> -7300 | AS8: | | AT8: -8200 | AU8: | | AV8: -9100
A9: 213 | B9: 十三张自由桌经典 | C9: -200|-280|-360|-440|-520|-600|-680|-760|-840|-920 | D9: 200|280|360|440|520|600|680|760|840|920 | H9: =H4*10 -> 1000 | I9: =I4 -> | | J9: 1900 | K9: | | L9: 2800 | M9: | | N9: =N4*10 -> 3700 | O9: =O4 -> | | P9: 4600 | Q9: | | R9: 5500 | S9: | | T9: =T4*10 -> 6400 | U9: =U4 -> | | V9: 7300 | W9: | | X9: 8200 | Y9: | | Z9: =Z4*10 -> 9100 | AD9: -1000 | AE9: =AE4 -> | | AF9: =AF4*10 -> -1900 | AG9: | | AH9: -2800 | AI9: | | AJ9: -3700 | AK9: =AK4 -> | | AL9: =AL4*10 -> -4600 | AM9: | | AN9: -5500 | AO9: | | AP9: -6400 | AQ9: =AQ4 -> | | AR9: =AR4*10 -> -7300 | AS9: | | AT9: -8200 | AU9: | | AV9: -9100
A10: 214 | B10: 十三张自由桌癞子 | C10: -100|-190|-280|-370|-460|-550|-640|-730|-820|-910 | D10: 100|190|280|370|460|550|640|730|820|910 | H10: =H5*10 -> 2000 | I10: =I5 -> | | J10: 2800 | K10: | | L10: 3600 | M10: | | N10: =N5*10 -> 4400 | O10: =O5 -> | | P10: 5200 | Q10: | | R10: 6000 | S10: | | T10: =T5*10 -> 6800 | U10: =U5 -> | | V10: 7600 | W10: | | X10: 8400 | Y10: | | Z10: =Z5*10 -> 9200 | AD10: -2000 | AE10: =AE5 -> | | AF10: =AF5*10 -> -2800 | AG10: | | AH10: -3600 | AI10: | | AJ10: -4400 | AK10: =AK5 -> | | AL10: =AL5*10 -> -5200 | AM10: | | AN10: -6000 | AO10: | | AP10: -6800 | AQ10: =AQ5 -> | | AR10: =AR5*10 -> -7600 | AS10: | | AT10: -8400 | AU10: | | AV10: -9200
A11: 209 | B11: Tienlen自由桌经典(打到底） | C11: -100|-190|-280|-370|-460|-550|-640|-730|-820|-910 | D11: 100|190|280|370|460|550|640|730|820|910 | H11: =H6*10 -> 1000 | I11: =I6 -> | | J11: 1900 | K11: | | L11: 2800 | M11: | | N11: =N6*10 -> 3700 | O11: =O6 -> | | P11: 4600 | Q11: | | R11: 5500 | S11: | | T11: =T6*10 -> 6400 | U11: =U6 -> | | V11: 7300 | W11: | | X11: 8200 | Y11: | | Z11: =Z6*10 -> 9100 | AD11: -1000 | AE11: =AE6 -> | | AF11: =AF6*10 -> -1900 | AG11: | | AH11: -2800 | AI11: | | AJ11: -3700 | AK11: =AK6 -> | | AL11: =AL6*10 -> -4600 | AM11: | | AN11: -5500 | AO11: | | AP11: -6400 | AQ11: =AQ6 -> | | AR11: =AR6*10 -> -7300 | AS11: | | AT11: -8200 | AU11: | | AV11: -9100
A12: 210 | B12: Tienlen自由桌娱乐(打到底） | C12: -100|-190|-280|-370|-460|-550|-640|-730|-820|-910 | D12: 100|190|280|370|460|550|640|730|820|910
A13: 242 | B13: Tienlen排位赛经典场 | C13: -100|-190|-280|-370|-460|-550|-640|-730|-820|-910 | D13: 100|190|280|370|460|550|640|730|820|910
A14: 243 | B14: Tienlen排位赛娱乐场 | C14: -100|-190|-280|-370|-460|-550|-640|-730|-820|-910 | D14: 100|190|280|370|460|550|640|730|820|910
A15: 244 | B15: Tienlen经典（打到底） | C15: =_xlfn.CONCAT(AD15:AX15) -> -100|-190|-280|-370|-460|-550|-640|-730|-820|-910 | D15: =_xlfn.CONCAT(H15:AB15) -> 100|190|280|370|460|550|640|730|820|910 | G15: 90 | H15: 100 | I15: | | J15: =H15+$G$3 -> 190 | K15: | | L15: 280 | M15: | | N15: 370 | O15: | | P15: =N15+$G$3 -> 460 | Q15: | | R15: 550 | S15: | | T15: 640 | U15: | | V15: =T15+$G$3 -> 730 | W15: | | X15: 820 | Y15: | | Z15: 910 | AD15: -100 | AE15: | | AF15: =AD15-$G$3 -> -190 | AG15: | | AH15: -280 | AI15: | | AJ15: -370 | AK15: | | AL15: =AJ15-$G$3 -> -460 | AM15: | | AN15: -550 | AO15: | | AP15: -640 | AQ15: | | AR15: =AP15-$G$3 -> -730 | AS15: | | AT15: -820 | AU15: | | AV15: -910
A16: 246 | B16: Tienlen排位赛经典场（打到底） | C16: -100|-190|-280|-370|-460|-550|-640|-730|-820|-910 | D16: 100|190|280|370|460|550|640|730|820|910
